[Event "*** SCC Grand Prix: Titled Tuesday Blitz"]
[Site "Chess.com"]
[Date "2020.10.06"]
[Round "5"]
[White "Gabix_94"]
[Black "AndrewMaco"]
[Result "1/2-1/2"]
[WhiteElo "2802"]
[BlackElo "2636"]
[TimeControl "180+1"]
[EndTime "10:59:55 PDT"]
[Termination "Game drawn - insufficient material"]

1. Nf3 {[%clk 0:03:00.9]} 1... Nf6 {[%clk 0:02:59.8]} 2. c4 {[%clk 0:03:00.6]}
2... e6 {[%clk 0:02:55.7]} 3. Nc3 {[%clk 0:03:00.3]} 3... d5 {[%clk 0:02:52.6]}
4. e3 {[%clk 0:03:00.5]} 4... b6 {[%clk 0:02:49.4]} 5. b3 {[%clk 0:02:59.9]}
5... Bb7 {[%clk 0:02:48.7]} 6. Bb2 {[%clk 0:02:59.4]} 6... Bd6 {[%clk
0:02:47.3]} 7. Be2 {[%clk 0:02:55.8]} 7... O-O {[%clk 0:02:47.3]} 8. O-O {[%clk
0:02:56.3]} 8... a6 {[%clk 0:02:47.8]} 9. d4 {[%clk 0:02:55]} 9... Nbd7 {[%clk
0:02:48]} 10. Rc1 {[%clk 0:02:53]} 10... Qe7 {[%clk 0:02:47.1]} 11. Qc2 {[%clk
0:02:48.4]} 11... Ne4 {[%clk 0:02:45.9]} 12. Nxe4 {[%clk 0:02:46.1]} 12... dxe4
{[%clk 0:02:46.8]} 13. Nd2 {[%clk 0:02:46.7]} 13... f5 {[%clk 0:02:44.6]} 14. g3
{[%clk 0:02:37.5]} 14... c5 {[%clk 0:02:17.5]} 15. f4 {[%clk 0:02:27.7]} 15...
exf3 {[%clk 0:02:12.3]} 16. Bxf3 {[%clk 0:02:27.5]} 16... Bxf3 {[%clk
0:02:11.4]} 17. Nxf3 {[%clk 0:02:28.4]} 17... Nf6 {[%clk 0:02:10.9]} 18. Rce1
{[%clk 0:02:20.4]} 18... b5 {[%clk 0:02:05.2]} 19. dxc5 {[%clk 0:02:09.8]} 19...
Bxc5 {[%clk 0:02:05.1]} 20. Bxf6 {[%clk 0:02:10.2]} 20... Rxf6 {[%clk
0:02:02.9]} 21. Kg2 {[%clk 0:02:10.5]} 21... Rff8 {[%clk 0:02:00.2]} 22. Re2
{[%clk 0:02:00.2]} 22... Rac8 {[%clk 0:01:52.8]} 23. cxb5 {[%clk 0:01:58.5]}
23... axb5 {[%clk 0:01:52.5]} 24. Qd3 {[%clk 0:01:58.6]} 24... Qb7 {[%clk
0:01:50.5]} 25. Rd1 {[%clk 0:01:50.5]} 25... h6 {[%clk 0:01:30.3]} 26. Qd7
{[%clk 0:01:38.3]} 26... Qxd7 {[%clk 0:01:28.1]} 27. Rxd7 {[%clk 0:01:39.2]}
27... Rfd8 {[%clk 0:01:28.3]} 28. Rxd8+ {[%clk 0:01:35.3]} 28... Rxd8 {[%clk
0:01:29.2]} 29. e4 {[%clk 0:01:35.9]} 29... Ra8 {[%clk 0:00:59.3]} 30. exf5
{[%clk 0:01:31.2]} 30... exf5 {[%clk 0:01:00.2]} 31. h4 {[%clk 0:01:28.6]} 31...
Kf7 {[%clk 0:00:56.1]} 32. Re5 {[%clk 0:01:23.4]} 32... Rxa2+ {[%clk 0:00:54.3]}
33. Kh3 {[%clk 0:01:23.8]} 33... Be7 {[%clk 0:00:42.1]} 34. Rxf5+ {[%clk
0:01:23.1]} 34... Bf6 {[%clk 0:00:42.7]} 35. Rxb5 {[%clk 0:01:23.6]} 35... Rb2
{[%clk 0:00:39.8]} 36. Kg4 {[%clk 0:01:19.5]} 36... Ke6 {[%clk 0:00:40.2]} 37.
Rb6+ {[%clk 0:01:16.3]} 37... Kd5 {[%clk 0:00:38.7]} 38. Rb7 {[%clk 0:01:09.6]}
38... Kc6 {[%clk 0:00:35.1]} 39. Rb4 {[%clk 0:01:09.9]} 39... Kc5 {[%clk
0:00:34]} 40. Rb8 {[%clk 0:01:08.8]} 40... Kd5 {[%clk 0:00:29.7]} 41. Ne1 {[%clk
0:01:05.9]} 41... Ke4 {[%clk 0:00:27.7]} 42. Rb4+ {[%clk 0:01:03.5]} 42... Ke3
{[%clk 0:00:25.3]} 43. Kh3 {[%clk 0:00:57.6]} 43... Kd2 {[%clk 0:00:19.4]} 44.
Ng2 {[%clk 0:00:52.7]} 44... Kc3 {[%clk 0:00:19.4]} 45. Rc4+ {[%clk 0:00:51.1]}
45... Kxb3 {[%clk 0:00:19.4]} 46. Rc7 {[%clk 0:00:51.6]} 46... Rc2 {[%clk
0:00:19.3]} 47. Rb7+ {[%clk 0:00:51.3]} 47... Kc4 {[%clk 0:00:19.5]} 48. Nf4
{[%clk 0:00:52]} 48... g5 {[%clk 0:00:15.9]} 49. Nh5 {[%clk 0:00:50.5]} 49...
Bd4 {[%clk 0:00:14.6]} 50. hxg5 {[%clk 0:00:49.2]} 50... hxg5 {[%clk 0:00:15.5]}
51. Kg4 {[%clk 0:00:49.8]} 51... Be3 {[%clk 0:00:15.1]} 52. Nf6 {[%clk
0:00:46.1]} 52... Kd3 {[%clk 0:00:14.3]} 53. Nd5 {[%clk 0:00:45.5]} 53... Rc4+
{[%clk 0:00:13.7]} 54. Kh5 {[%clk 0:00:44.6]} 54... Bd2 {[%clk 0:00:14.2]} 55.
g4 {[%clk 0:00:43.5]} 55... Ke4 {[%clk 0:00:11.2]} 56. Rd7 {[%clk 0:00:39.1]}
56... Bf4 {[%clk 0:00:07]} 57. Nf6+ {[%clk 0:00:36]} 57... Kf3 {[%clk 0:00:07]}
58. Rd3+ {[%clk 0:00:34.8]} 58... Ke2 {[%clk 0:00:07.6]} 59. Rb3 {[%clk
0:00:34.8]} 59... Rc6 {[%clk 0:00:06.2]} 60. Nd5 {[%clk 0:00:35]} 60... Rd6
{[%clk 0:00:05.5]} 61. Rb5 {[%clk 0:00:34.4]} 61... Kf3 {[%clk 0:00:05]} 62. Ne7
{[%clk 0:00:32]} 62... Rd8 {[%clk 0:00:03.4]} 63. Rb3+ {[%clk 0:00:29.1]} 63...
Ke4 {[%clk 0:00:03.4]} 64. Kg6 {[%clk 0:00:27]} 64... Rd6+ {[%clk 0:00:03.5]}
65. Kh5 {[%clk 0:00:26]} 65... Rd3 {[%clk 0:00:03.7]} 66. Rb4+ {[%clk
0:00:25.4]} 66... Rd4 {[%clk 0:00:04.2]} 67. Rb1 {[%clk 0:00:24.4]} 67... Rd6
{[%clk 0:00:04.2]} 68. Nf5 {[%clk 0:00:24.3]} 68... Ra6 {[%clk 0:00:04.3]} 69.
Re1+ {[%clk 0:00:23.3]} 69... Kf3 {[%clk 0:00:04.6]} 70. Nd4+ {[%clk 0:00:23.6]}
70... Kf2 {[%clk 0:00:05.1]} 71. Re2+ {[%clk 0:00:24.1]} 71... Kg3 {[%clk
0:00:04.8]} 72. Nf5+ {[%clk 0:00:23.5]} 72... Kf3 {[%clk 0:00:04.9]} 73. Rb2
{[%clk 0:00:23.1]} 73... Ra8 {[%clk 0:00:05]} 74. Rb3+ {[%clk 0:00:22.2]} 74...
Kf2 {[%clk 0:00:05.6]} 75. Kg6 {[%clk 0:00:19.8]} 75... Rg8+ {[%clk 0:00:05.4]}
76. Kf7 {[%clk 0:00:19.9]} 76... Ra8 {[%clk 0:00:05.8]} 77. Ne7 {[%clk
0:00:19.6]} 77... Ra7 {[%clk 0:00:06.1]} 78. Ke6 {[%clk 0:00:19.8]} 78... Ra6+
{[%clk 0:00:06.2]} 79. Kf5 {[%clk 0:00:20]} 79... Ra5+ {[%clk 0:00:06.3]} 80.
Kg6 {[%clk 0:00:20.3]} 80... Ra6+ {[%clk 0:00:06.5]} 81. Kh5 {[%clk 0:00:20.7]}
81... Ra7 {[%clk 0:00:05.3]} 82. Nc6 {[%clk 0:00:20.5]} 82... Ra6 {[%clk
0:00:05.2]} 83. Nb4 {[%clk 0:00:20.9]} 83... Ra4 {[%clk 0:00:04.2]} 84. Nd3+
{[%clk 0:00:21.1]} 84... Kg2 {[%clk 0:00:04.6]} 85. Rb2+ {[%clk 0:00:20.4]}
85... Kf3 {[%clk 0:00:04.2]} 86. Rb3 {[%clk 0:00:20.5]} 86... Kg2 {[%clk
0:00:04.7]} 87. Nc5 {[%clk 0:00:20.6]} 87... Rc4 {[%clk 0:00:04.6]} 88. Ne6
{[%clk 0:00:20.8]} 88... Rc6 {[%clk 0:00:04.5]} 89. Nxg5 {[%clk 0:00:20.8]}
89... Rc5 {[%clk 0:00:04.1]} 90. Kg6 {[%clk 0:00:19.2]} 90... Rxg5+ {[%clk
0:00:03.8]} 91. Kf6 {[%clk 0:00:19.7]} 91... Rxg4 {[%clk 0:00:03.3]} 92. Kf5
{[%clk 0:00:20.2]} 92... Rh4 {[%clk 0:00:03.7]} 93. Rb4 {[%clk 0:00:20.4]} 93...
Kf3 {[%clk 0:00:04]} 94. Rb3+ {[%clk 0:00:20.8]} 94... Be3 {[%clk 0:00:04.6]}
95. Kg6 {[%clk 0:00:19]} 95... Re4 {[%clk 0:00:04.5]} 96. Kf5 {[%clk 0:00:18.4]}
96... Ra4 {[%clk 0:00:04.5]} 97. Rb7 {[%clk 0:00:17.8]} 97... Ra5+ {[%clk
0:00:04.6]} 98. Ke6 {[%clk 0:00:18.1]} 98... Ke4 {[%clk 0:00:04.7]} 99. Kd7
{[%clk 0:00:18]} 99... Kd5 {[%clk 0:00:04.3]} 100. Rc7 {[%clk 0:00:17.7]} 100...
Bc5 {[%clk 0:00:04.5]} 101. Rb7 {[%clk 0:00:17.8]} 101... Ra1 {[%clk 0:00:04.5]}
102. Kc7 {[%clk 0:00:17.3]} 102... Rg1 {[%clk 0:00:04.9]} 103. Kd7 {[%clk
0:00:17.3]} 103... Kc4 {[%clk 0:00:05.2]} 104. Kc6 {[%clk 0:00:17]} 104... Rd1
{[%clk 0:00:05.6]} 105. Kc7 {[%clk 0:00:16.8]} 105... Rd6 {[%clk 0:00:05.7]}
106. Kc8 {[%clk 0:00:15.8]} 106... Kd5 {[%clk 0:00:05.1]} 107. Rd7 {[%clk
0:00:15.9]} 107... Kc6 {[%clk 0:00:03.3]} 108. Rxd6+ {[%clk 0:00:15]} 108...
Bxd6 {[%clk 0:00:04.2]} 1/2-1/2

[Event "*** SCC Grand Prix: Titled Tuesday Blitz"]
[Site "Chess.com"]
[Date "2020.10.06"]
[Round "6"]
[White "BigAl"]
[Black "GmSergioBarrientos"]
[Result "0-1"]
[WhiteElo "2507"]
[BlackElo "2683"]
[TimeControl "180+1"]
[EndTime "11:03:45 PDT"]
[Termination "GmSergioBarrientos won by resignation"]

1. e4 {[%clk 0:03:00.9]} 1... c5 {[%clk 0:02:59.4]} 2. Nc3 {[%clk 0:03:00.3]}
2... e6 {[%clk 0:02:59.5]} 3. g3 {[%clk 0:03:00.9]} 3... a6 {[%clk 0:02:58.7]}
4. Bg2 {[%clk 0:03:01.2]} 4... b5 {[%clk 0:02:59.6]} 5. Nf3 {[%clk 0:03:00.7]}
5... Bb7 {[%clk 0:02:59.9]} 6. d3 {[%clk 0:03:01.3]} 6... b4 {[%clk 0:03:00]} 7.
Nb1 {[%clk 0:03:00.5]} 7... d5 {[%clk 0:03:00.9]} 8. Nbd2 {[%clk 0:03:00.8]}
8... Nf6 {[%clk 0:03:00.8]} 9. exd5 {[%clk 0:03:00]} 9... Bxd5 {[%clk
0:02:59.1]} 10. O-O {[%clk 0:03:00.5]} 10... Nbd7 {[%clk 0:02:59.3]} 11. Re1
{[%clk 0:02:59.9]} 11... Be7 {[%clk 0:02:59.2]} 12. a4 {[%clk 0:02:56.9]} 12...
bxa3 {[%clk 0:02:56.2]} 13. Rxa3 {[%clk 0:02:55.7]} 13... O-O {[%clk 0:02:55]}
14. Nc4 {[%clk 0:02:55.6]} 14... a5 {[%clk 0:02:54.1]} 15. Bf4 {[%clk
0:02:47.7]} 15... a4 {[%clk 0:02:52]} 16. c3 {[%clk 0:02:32.1]} 16... Nb6 {[%clk
0:02:51.5]} 17. Ne3 {[%clk 0:02:19]} 17... Bb3 {[%clk 0:02:50]} 18. Ne5 {[%clk
0:02:17.5]} 18... Bxd1 {[%clk 0:02:48.6]} 19. Rxd1 {[%clk 0:02:17]} 19... Nfd5
{[%clk 0:02:45.2]} 20. c4 {[%clk 0:02:09.4]} 20... Nxe3 {[%clk 0:02:41.7]} 21.
Bxe3 {[%clk 0:02:08]} 21... Bd6 {[%clk 0:02:41.6]} 22. Nc6 {[%clk 0:02:07.8]}
22... Qf6 {[%clk 0:02:38.7]} 23. d4 {[%clk 0:02:05.5]} 23... Nxc4 {[%clk
0:02:32.9]} 24. dxc5 {[%clk 0:02:03.3]} 24... Nxe3 {[%clk 0:02:32.9]} 25. Rxe3
{[%clk 0:01:59.3]} 25... Bxc5 {[%clk 0:02:32.5]} 26. Rf3 {[%clk 0:01:59.9]}
26... Qxb2 {[%clk 0:02:32.3]} 0-1

[Event "*** SCC Grand Prix: Titled Tuesday Blitz"]
[Site "Chess.com"]
[Date "2020.10.06"]
[Round "6"]
[White "glebus008"]
[Black "kakakz"]
[Result "0-1"]
[WhiteElo "2232"]
[BlackElo "2391"]
[TimeControl "180+1"]
[EndTime "11:04:12 PDT"]
[Termination "kakakz won by resignation"]

1. e4 {[%clk 0:03:00.9]} 1... e6 {[%clk 0:03:00.1]} 2. d4 {[%clk 0:02:59.4]}
2... d5 {[%clk 0:03:01]} 3. exd5 {[%clk 0:03:00.3]} 3... exd5 {[%clk 0:03:01.1]}
4. Nf3 {[%clk 0:03:01.2]} 4... Bb4+ {[%clk 0:03:01.5]} 5. c3 {[%clk 0:03:00.6]}
5... Bd6 {[%clk 0:03:01.9]} 6. c4 {[%clk 0:02:56]} 6... Nc6 {[%clk 0:02:52.5]}
7. Nc3 {[%clk 0:02:52.3]} 7... dxc4 {[%clk 0:02:46.3]} 8. Bxc4 {[%clk
0:02:50.5]} 8... Nge7 {[%clk 0:02:47.2]} 9. O-O {[%clk 0:02:47.4]} 9... O-O
{[%clk 0:02:46.8]} 10. Re1 {[%clk 0:02:29.8]} 10... Bg4 {[%clk 0:02:42.2]} 11.
h3 {[%clk 0:02:13]} 11... Bxf3 {[%clk 0:02:30.9]} 12. Qxf3 {[%clk 0:02:13.9]}
12... Nxd4 {[%clk 0:02:31]} 13. Qxb7 {[%clk 0:02:12.7]} 13... Nc2 {[%clk
0:02:28.8]} 14. Bg5 {[%clk 0:02:09.6]} 14... Nxa1 {[%clk 0:02:22.2]} 15. Rxa1
{[%clk 0:02:09]} 15... h6 {[%clk 0:02:17.9]} 16. Bh4 {[%clk 0:02:07.8]} 16...
Qb8 {[%clk 0:02:17.4]} 17. Qxb8 {[%clk 0:01:48.7]} 17... Raxb8 {[%clk
0:02:17.2]} 18. Bb3 {[%clk 0:01:47.7]} 18... Nf5 {[%clk 0:02:15.5]} 19. g3
{[%clk 0:01:41.8]} 19... g5 {[%clk 0:02:12.3]} 0-1

[Event "*** SCC Grand Prix: Titled Tuesday Blitz"]
[Site "Chess.com"]
[Date "2020.10.06"]
[Round "6"]
[White "Jabberwockiez"]
[Black "AnonymusDonkey"]
[Result "0-1"]
[WhiteElo "2236"]
[BlackElo "2410"]
[TimeControl "180+1"]
[EndTime "11:04:39 PDT"]
[Termination "AnonymusDonkey won by resignation"]

1. e4 {[%clk 0:02:53.5]} 1... d6 {[%clk 0:02:58.9]} 2. d4 {[%clk 0:02:53.2]}
2... Nf6 {[%clk 0:02:59.3]} 3. Nc3 {[%clk 0:02:46.2]} 3... g6 {[%clk 0:02:59]}
4. Be3 {[%clk 0:02:44]} 4... c6 {[%clk 0:02:58.7]} 5. f3 {[%clk 0:02:44.1]} 5...
Nbd7 {[%clk 0:02:58.1]} 6. Qd2 {[%clk 0:02:44.6]} 6... b5 {[%clk 0:02:58.3]} 7.
a3 {[%clk 0:02:42.7]} 7... Bg7 {[%clk 0:02:51.2]} 8. Bh6 {[%clk 0:02:42.2]} 8...
O-O {[%clk 0:02:49.5]} 9. h4 {[%clk 0:02:41.8]} 9... e5 {[%clk 0:02:47.4]} 10.
d5 {[%clk 0:02:34.9]} 10... cxd5 {[%clk 0:02:45.6]} 11. exd5 {[%clk 0:02:26.7]}
11... a6 {[%clk 0:02:21]} 12. h5 {[%clk 0:02:21.6]} 12... Re8 {[%clk 0:02:06.6]}
13. hxg6 {[%clk 0:02:18.5]} 13... fxg6 {[%clk 0:02:02]} 14. Bxg7 {[%clk
0:02:13.9]} 14... Kxg7 {[%clk 0:02:01.9]} 15. Qh6+ {[%clk 0:02:14.5]} 15... Kg8
{[%clk 0:02:02.4]} 16. Ne4 {[%clk 0:02:08.2]} 16... Nf8 {[%clk 0:02:01.9]} 17.
Ng5 {[%clk 0:01:52.6]} 17... Qa5+ {[%clk 0:01:55]} 18. c3 {[%clk 0:01:45.2]}
18... Bb7 {[%clk 0:01:50.3]} 19. Nxh7 {[%clk 0:01:33.4]} 19... N6xh7 {[%clk
0:01:47.5]} 20. Qxg6+ {[%clk 0:01:33.3]} 20... Nxg6 {[%clk 0:01:47]} 0-1

[Event "*** SCC Grand Prix: Titled Tuesday Blitz"]
[Site "Chess.com"]
[Date "2020.10.06"]
[Round "6"]
[White "A-Fier"]
[Black "FMJoseHerrera"]
[Result "1-0"]
[WhiteElo "2768"]
[BlackElo "2546"]
[TimeControl "180+1"]
[EndTime "11:04:46 PDT"]
[Termination "A-Fier won by resignation"]

1. e4 {[%clk 0:03:00.9]} 1... c5 {[%clk 0:02:59.8]} 2. d4 {[%clk 0:02:58.8]}
2... cxd4 {[%clk 0:02:59.7]} 3. c3 {[%clk 0:02:58.5]} 3... d5 {[%clk 0:02:59.7]}
4. exd5 {[%clk 0:02:54.9]} 4... Nf6 {[%clk 0:02:58.6]} 5. cxd4 {[%clk
0:02:50.8]} 5... g6 {[%clk 0:02:57.2]} 6. Nc3 {[%clk 0:02:50.9]} 6... Bg7 {[%clk
0:02:56.6]} 7. Qb3 {[%clk 0:02:50.9]} 7... O-O {[%clk 0:02:56.4]} 8. Nge2 {[%clk
0:02:50.9]} 8... Nbd7 {[%clk 0:02:47.8]} 9. Nf4 {[%clk 0:02:50.6]} 9... Nb6
{[%clk 0:02:46.4]} 10. Be2 {[%clk 0:02:50.6]} 10... Ne8 {[%clk 0:02:39.4]} 11.
Be3 {[%clk 0:02:47.2]} 11... Nd6 {[%clk 0:02:39.5]} 12. O-O {[%clk 0:02:47.3]}
12... Nf5 {[%clk 0:02:39.7]} 13. Rad1 {[%clk 0:02:44.6]} 13... Nxe3 {[%clk
0:02:36.5]} 14. fxe3 {[%clk 0:02:45.5]} 14... Nd7 {[%clk 0:02:31.8]} 15. e4
{[%clk 0:02:45.1]} 15... a6 {[%clk 0:02:28.5]} 16. e5 {[%clk 0:02:45.5]} 16...
Qb6 {[%clk 0:02:09]} 17. Qc2 {[%clk 0:02:36.6]} 17... Nxe5 {[%clk 0:01:50.3]}
18. Kh1 {[%clk 0:02:36.8]} 18... Ng4 {[%clk 0:01:49.2]} 19. Qd3 {[%clk
0:02:32.8]} 19... Bf5 {[%clk 0:01:48.4]} 20. Qg3 {[%clk 0:02:31.5]} 20... Bxd4
{[%clk 0:01:47.7]} 21. Bxg4 {[%clk 0:02:30.2]} 21... Bxg4 {[%clk 0:01:34.7]} 22.
Qxg4 {[%clk 0:02:30.1]} 22... Qxb2 {[%clk 0:01:34.6]} 23. Rxd4 {[%clk
0:02:23.2]} 23... Qxc3 {[%clk 0:01:33.5]} 24. Rd3 {[%clk 0:02:22.7]} 24... Qc4
{[%clk 0:01:33]} 25. Rdf3 {[%clk 0:02:18.3]} 25... b5 {[%clk 0:01:30.3]} 26. Qg5
{[%clk 0:02:17.7]} 26... b4 {[%clk 0:01:26.9]} 27. Qh6 {[%clk 0:02:08.1]} 27...
Kh8 {[%clk 0:01:22.9]} 28. Nxg6+ {[%clk 0:02:03.7]} 1-0

[Event "*** SCC Grand Prix: Titled Tuesday Blitz"]
[Site "Chess.com"]
[Date "2020.10.06"]
[Round "6"]
[White "kot60"]
[Black "nocnypako"]
[Result "0-1"]
[WhiteElo "2428"]
[BlackElo "2555"]
[TimeControl "180+1"]
[EndTime "11:05:07 PDT"]
[Termination "nocnypako won by resignation"]

1. e4 {[%clk 0:03:00.9]} 1... c5 {[%clk 0:02:57.7]} 2. Nc3 {[%clk 0:03:00.8]}
2... d6 {[%clk 0:02:57.8]} 3. Bc4 {[%clk 0:03:01.2]} 3... e6 {[%clk 0:02:57.1]}
4. d3 {[%clk 0:03:01.7]} 4... Nf6 {[%clk 0:02:57.1]} 5. Nge2 {[%clk 0:03:00.9]}
5... Be7 {[%clk 0:02:57.6]} 6. O-O {[%clk 0:03:00]} 6... O-O {[%clk 0:02:58.1]}
7. a4 {[%clk 0:02:58.2]} 7... d5 {[%clk 0:02:58.4]} 8. exd5 {[%clk 0:02:57.8]}
8... exd5 {[%clk 0:02:59.3]} 9. Bb3 {[%clk 0:02:57.8]} 9... d4 {[%clk
0:02:56.4]} 10. Ne4 {[%clk 0:02:56.9]} 10... Nxe4 {[%clk 0:02:55.6]} 11. dxe4
{[%clk 0:02:57.4]} 11... Be6 {[%clk 0:02:53.2]} 12. Nf4 {[%clk 0:02:53.6]} 12...
Bxb3 {[%clk 0:02:51.8]} 13. cxb3 {[%clk 0:02:53.8]} 13... Nd7 {[%clk 0:02:50.4]}
14. Bd2 {[%clk 0:02:44]} 14... Bd6 {[%clk 0:02:48.8]} 15. Nd3 {[%clk 0:02:32.8]}
15... f5 {[%clk 0:02:40.3]} 16. exf5 {[%clk 0:02:23.6]} 16... Rxf5 {[%clk
0:02:41.2]} 17. Qc2 {[%clk 0:02:19.7]} 17... Qf6 {[%clk 0:02:20.5]} 18. b4
{[%clk 0:02:18.5]} 18... Re8 {[%clk 0:01:48.8]} 19. bxc5 {[%clk 0:02:15.8]}
19... Bxh2+ {[%clk 0:01:48.4]} 20. Kh1 {[%clk 0:01:19]} 20... Qh4 {[%clk
0:01:38.2]} 0-1

[Event "*** SCC Grand Prix: Titled Tuesday Blitz"]
[Site "Chess.com"]
[Date "2020.10.06"]
[Round "6"]
[White "Chessbard1972"]
[Black "Gerasimenyuk_Miha"]
[Result "0-1"]
[WhiteElo "2268"]
[BlackElo "2421"]
[TimeControl "180+1"]
[EndTime "11:05:40 PDT"]
[Termination "Gerasimenyuk_Miha won by resignation"]

1. d4 {[%clk 0:03:00.9]} 1... d5 {[%clk 0:02:57.4]} 2. c4 {[%clk 0:02:59]} 2...
Nc6 {[%clk 0:02:57.7]} 3. cxd5 {[%clk 0:02:58.2]} 3... Qxd5 {[%clk 0:02:58.6]}
4. e3 {[%clk 0:02:58.2]} 4... e5 {[%clk 0:02:58.1]} 5. Nc3 {[%clk 0:02:58]} 5...
Bb4 {[%clk 0:02:57.7]} 6. Nf3 {[%clk 0:02:56.9]} 6... exd4 {[%clk 0:02:53.5]} 7.
exd4 {[%clk 0:02:54.6]} 7... Bg4 {[%clk 0:02:52.2]} 8. Be2 {[%clk 0:02:54.7]}
8... O-O-O {[%clk 0:02:49.9]} 9. Be3 {[%clk 0:02:53.6]} 9... Nf6 {[%clk
0:02:48.4]} 10. O-O {[%clk 0:02:52.6]} 10... Qh5 {[%clk 0:02:49]} 11. h3 {[%clk
0:02:51.4]} 11... Bd6 {[%clk 0:02:48.5]} 12. Nb5 {[%clk 0:02:44.6]} 12... Bxf3
{[%clk 0:02:44.3]} 13. Nxd6+ {[%clk 0:02:40.9]} 13... Rxd6 {[%clk 0:02:45.2]}
14. Bxf3 {[%clk 0:02:40.6]} 14... Qg6 {[%clk 0:02:43.4]} 15. Rc1 {[%clk
0:02:32.1]} 15... Nd5 {[%clk 0:02:41.7]} 16. Qa4 {[%clk 0:02:26.5]} 16... Kb8
{[%clk 0:02:34]} 17. Rc5 {[%clk 0:02:23.4]} 17... Nb6 {[%clk 0:02:30.6]} 18. Qd1
{[%clk 0:01:57.3]} 18... Rhd8 {[%clk 0:02:27.9]} 19. Qc1 {[%clk 0:01:53]} 19...
h6 {[%clk 0:02:18.6]} 20. Bf4 {[%clk 0:01:47.1]} 20... Rf6 {[%clk 0:01:57.4]}
21. Bxc6 {[%clk 0:01:44.1]} 21... Rxc6 {[%clk 0:01:54.1]} 22. Rxc6 {[%clk
0:01:42.6]} 22... Qxc6 {[%clk 0:01:52.6]} 23. Qxc6 {[%clk 0:01:40.9]} 23... bxc6
{[%clk 0:01:53.5]} 24. Be3 {[%clk 0:01:39.5]} 24... Kb7 {[%clk 0:01:50.9]} 25.
Rc1 {[%clk 0:01:38.3]} 25... Rd5 {[%clk 0:01:49]} 26. Rc5 {[%clk 0:01:35.7]}
26... Rd7 {[%clk 0:01:47.6]} 27. Re5 {[%clk 0:01:31.6]} 27... Nd5 {[%clk
0:01:46.9]} 28. Kf1 {[%clk 0:01:27.7]} 28... f6 {[%clk 0:01:46.7]} 29. Re6
{[%clk 0:01:26.7]} 29... Kb6 {[%clk 0:01:44.7]} 30. Ke2 {[%clk 0:01:25.1]} 30...
Kb5 {[%clk 0:01:44.6]} 31. Kd2 {[%clk 0:01:23.2]} 31... c5 {[%clk 0:01:44.6]}
32. Ke2 {[%clk 0:01:14.1]} 32... cxd4 {[%clk 0:01:39.1]} 33. Bxd4 {[%clk
0:01:10.3]} 33... Nf4+ {[%clk 0:01:39.1]} 0-1

[Event "*** SCC Grand Prix: Titled Tuesday Blitz"]
[Site "Chess.com"]
[Date "2020.10.06"]
[Round "6"]
[White "Colombiano07"]
[Black "Khnykin_Nikolay"]
[Result "1-0"]
[WhiteElo "2317"]
[BlackElo "2045"]
[TimeControl "180+1"]
[EndTime "11:05:47 PDT"]
[Termination "Colombiano07 won on time"]

1. d4 {[%clk 0:02:57.2]} 1... e6 {[%clk 0:02:54.1]} 2. Nc3 {[%clk 0:02:56.8]}
2... b6 {[%clk 0:02:51.9]} 3. e4 {[%clk 0:02:56.5]} 3... Bb7 {[%clk 0:02:50.5]}
4. Bd3 {[%clk 0:02:56.3]} 4... Be7 {[%clk 0:02:43.3]} 5. Nf3 {[%clk 0:02:56]}
5... d6 {[%clk 0:02:42.4]} 6. O-O {[%clk 0:02:55.9]} 6... Nf6 {[%clk 0:02:40.5]}
7. Qe2 {[%clk 0:02:55.1]} 7... Nbd7 {[%clk 0:02:37.5]} 8. a3 {[%clk 0:02:55.2]}
8... a6 {[%clk 0:02:33.4]} 9. h3 {[%clk 0:02:54.6]} 9... c5 {[%clk 0:02:32.7]}
10. e5 {[%clk 0:02:54.3]} 10... dxe5 {[%clk 0:02:19]} 11. dxe5 {[%clk
0:02:55.2]} 11... Bxf3 {[%clk 0:02:11.3]} 12. Qxf3 {[%clk 0:02:54.1]} 12... Nxe5
{[%clk 0:02:05.3]} 13. Qg3 {[%clk 0:02:54.6]} 13... Bd6 {[%clk 0:02:00.8]} 14.
Qxg7 {[%clk 0:02:53.7]} 14... Rg8 {[%clk 0:02:00.3]} 15. Qh6 {[%clk 0:02:54.1]}
15... Bc7 {[%clk 0:01:16.3]} 16. Bg5 {[%clk 0:02:50.5]} 16... Qd6 {[%clk
0:01:12.5]} 17. f4 {[%clk 0:02:40]} 17... Nxd3 {[%clk 0:01:09.7]} 18. cxd3
{[%clk 0:02:40.9]} 18... Rg6 {[%clk 0:01:07.4]} 19. Qh4 {[%clk 0:02:31.8]} 19...
Nd5 {[%clk 0:00:38.2]} 20. Ne4 {[%clk 0:02:29.6]} 20... Qc6 {[%clk 0:00:27.5]}
21. Qxh7 {[%clk 0:02:28.8]} 21... c4 {[%clk 0:00:02.7]} 22. dxc4 {[%clk
0:02:16]} 22... Qxc4 {[%clk 0:00:02.2]} 23. Qh8+ {[%clk 0:02:10.3]} 23... Kd7
{[%clk 0:00:01.3]} 24. Qxa8 {[%clk 0:02:10.1]} 1-0